[Event "ROU-ch Men 2018"]
[Site "Olanesti"]
[Date "2018.05.19"]
[Round "6"]
[White "Rusan, Paul-Cristian"]
[Black "Craciun, Ovidiu"]
[Result "0-1"]
[ECO "C55"]
[WhiteElo "2213"]
[BlackElo "1931"]
[Annotator "NA"]
[PlyCount "102"]
[EventDate "2018.??.??"]
[EventType "swiss"]
[EventCountry "ROU"]
[SourceTitle "playchess.com"]
[Source "ChessBase"]
[SourceQuality "1"]
[TimeControl "40/5400+30:1800+30"]

1. e4 {[%emt 0:00:00]} e5 {[%emt 0:00:59]} 2. Nf3 {[%emt 0:00:00]} Nc6 {[%emt 0:00:03]} 3. d4 {[%emt 0:00:00]} exd4 {[%emt 0:00:11]} 4. Bc4 {[%emt 0:00:04]} Nf6 {[%emt 0:00:22]} 5. e5 {[%emt 0:00:18]} d5 {[%emt 0:00:08]} 6. Bb5 {[%emt 0:00:13]} Ne4 {[%emt 0:00:07]} 7. Nxd4 {[%emt 0:00:22]} Bd7 {[%emt 0:00:04]} 8. Bxc6 {[%emt 0:00:16]} bxc6 {[%emt 0:00:09]} 9. O-O {[%emt 0:00:21]} Bc5 {[%emt 0:04:51]} 10. f3 {[%emt 0:02:02]} Ng5 {[%emt 0:00:51]} 11. Be3 {[%emt 0:01:50]} Bb6 {[%emt 0:06:48]} 12. f4 {[%emt 0:01:46]} Ne4 {[%emt 0:01:21]} 13. Nd2 {[%emt 0:01:49]} Nxd2 {[%emt 0:10:41]} 14. Qxd2 {[%emt 0:00:10]} c5 {[%emt 0:00:08]} 15. Nf3 {[%emt 0:00:33]} d4 {[%emt 0:02:44]} 16. Bf2 {[%emt 0:01:09]} Bc6 {[%emt 0:00:30]} 17. a4 {[%emt 0:00:49]} a5 {[%emt 0:01:25]} 18. f5 {[%emt 0:04:05]} Qd5 {[%emt 0:16:38]} 19. Qg5 {[%emt 0:13:03]} h6 {[%emt 0:02:26]} 20. Qxg7 {[%emt 0:02:09]} O-O-O {[%emt 0:03:25]} 21. Qf6 {[%emt 0:01:14]} Rdg8 {[%emt 0:05:00]} 22. Bg3 {[%emt 0:03:30]} c4 {[%emt 0:05:16]} 23. Kh1 {[%emt 0:01:17]} d3 {[%emt 0:00:16]} 24. cxd3 {[%emt 0:05:08]} cxd3 {[%emt 0:01:58]} 25. b4 {[%emt 0:13:24]} d2 {[%emt 0:12:26]} 26. b5 {[%emt 0:05:21]} Bb7 {[%emt 0:00:45]} 27. Rad1 {[%emt 0:05:19]} Be3 {[%emt 0:00:37]} 28. e6 {[%emt 0:05:48]} fxe6 {[%emt 0:11:18]} 29. fxe6 {[%emt 0:04:59]} Rh7 {[%emt 0:02:59]} 30. Nh4 {[%emt 0:21:45]} Bg5 {[%emt 0:01:07]} 31. Qf8+ {[%emt 0:02:23]} Rxf8 {[%emt 0:00:10]} 32. Rxf8+ {[%emt 0:00:02]} Bd8 {[%emt 0:00:17]} 33. b6 {[%emt 0:04:34]} cxb6 {[%emt 0:06:17]} 34. Nf3 {[%emt 0:00:18]} Qxe6 {[%emt 0:00:39]} 35. Rxd2 {[%emt 0:00:10]} Rd7 {[%emt 0:00:12]} 36. Rc2+ {[%emt 0:00:16]} Bc6 {[%emt 0:00:11]} 37. h3 {[%emt 0:01:00]} Kb7 {[%emt 0:02:18]} 38. Kh2 {[%emt 0:00:28]} Bxf3 {[%emt 0:00:58]} 39. Rxf3 {[%emt 0:00:08]} Bc7 {[%emt 0:00:27]} 40. Bxc7 {[%emt 0:00:00]} Rxc7 {[%emt 0:00:09]} 41. Rcf2 {[%emt 0:02:06]} Qe5+ {[%emt 0:00:50]} 42. g3 {[%emt 0:00:23]} Qe4 {[%emt 0:02:05]} 43. Rf4 {[%emt 0:00:40]} Qb1 {[%emt 0:00:14]} 44. Rf8 {[%emt 0:00:39]} Rc2 {[%emt 0:00:51]} 45. h4 {[%emt 0:00:58]} Qd1 {[%emt 0:01:27]} 46. Kg2 {[%emt 0:03:02]} Rxf2+ {[%emt 0:00:19]} 47. Rxf2 {[%emt 0:00:09]} Qxa4 {[%emt 0:00:04]} 48. h5 {[%emt 0:00:29]} Qe4+ {[%emt 0:00:29]} 49. Kh3 {[%emt 0:00:09]} a4 {[%emt 0:00:11]} 50. Rf6 {[%emt 0:00:21]} a3 {[%emt 0:00:23]} 51. Rxh6 {[%emt 0:00:17]} a2 {[%emt 0:00:12]} 0-1

[Event "ROU-ch Men 2018"]
[Site "Olanesti"]
[Date "2018.05.19"]
[Round "6"]
[White "Ciorgovean, Iustin"]
[Black "Dumitru, Matei-Ioan"]
[Result "1-0"]
[ECO "D35"]
[WhiteElo "2169"]
[BlackElo "2164"]
[Annotator "NA"]
[PlyCount "97"]
[EventDate "2018.??.??"]
[EventType "swiss"]
[EventCountry "ROU"]
[SourceTitle "playchess.com"]
[Source "ChessBase"]
[SourceQuality "1"]
[TimeControl "40/5400+30:1800+30"]

1. d4 {[%emt 0:00:00]} d5 {[%emt 0:00:07]} 2. c4 {[%emt 0:00:00]} e6 {[%emt 0:00:04]} 3. Nc3 {[%emt 0:00:00]} Nf6 {[%emt 0:00:04]} 4. cxd5 {[%emt 0:00:00]} exd5 {[%emt 0:00:05]} 5. Bg5 {[%emt 0:00:00]} Nbd7 {[%emt 0:00:07]} 6. e3 {[%emt 0:00:27]} Be7 {[%emt 0:00:06]} 7. Bd3 {[%emt 0:01:10]} c6 {[%emt 0:00:05]} 8. Qc2 {[%emt 0:01:44]} Nh5 {[%emt 0:00:06]} 9. Bxe7 {[%emt 0:01:05]} Qxe7 {[%emt 0:00:05]} 10. O-O-O {[%emt 0:03:45]} Nb6 {[%emt 0:00:21]} 11. h3 {[%emt 0:09:01]} g6 {[%emt 0:00:21]} 12. g4 {[%emt 0:06:41]} Ng7 {[%emt 0:00:14]} 13. Nf3 {[%emt 0:01:42]} Be6 {[%emt 0:01:16]} 14. Kb1 {[%emt 0:08:22]} O-O-O {[%emt 0:00:10]} 15. Rc1 {[%emt 0:04:05]} Kb8 {[%emt 0:00:06]} 16. Na4 {[%emt 0:05:08]} Nxa4 {[%emt 0:08:36]} 17. Qxa4 {[%emt 0:00:07]} Qf6 {[%emt 0:01:55]} 18. Ne5 {[%emt 0:16:28]} Rc8 {[%emt 0:14:27]} 19. f4 {[%emt 0:04:43]} Qe7 {[%emt 0:00:57]} 20. Qc2 {[%emt 0:00:31]} f6 {[%emt 0:03:29]} 21. Nf3 {[%emt 0:00:05]} Bd7 {[%emt 0:05:33]} 22. Rhe1 {[%emt 0:01:51]} Qd6 {[%emt 0:04:20]} 23. Qc5 {[%emt 0:08:35]} Qxc5 {[%emt 0:02:30]} 24. dxc5 {[%emt 0:00:30]} h5 {[%emt 0:10:00]} 25. g5 {[%emt 0:02:34]} f5 {[%emt 0:11:47]} 26. Ne5 {[%emt 0:04:55]} Be8 {[%emt 0:00:13]} 27. h4 {[%emt 0:00:07]} Ne6 {[%emt 0:00:23]} 28. b4 {[%emt 0:00:14]} Rh7 {[%emt 0:01:53]} 29. Kb2 {[%emt 0:02:12]} Kc7 {[%emt 0:16:45]} 30. Nf3 {[%emt 0:06:16]} b5 {[%emt 0:01:28]} 31. a4 {[%emt 0:01:05]} a6 {[%emt 0:02:17]} 32. Ra1 {[%emt 0:01:14]} Kb8 {[%emt 0:04:37]} 33. Kc3 {[%emt 0:00:43]} Ra7 {[%emt 0:01:06]} 34. Nd4 {[%emt 0:00:42]} Ng7 {[%emt 0:01:36]} 35. Ra3 {[%emt 0:01:39]} Kb7 {[%emt 0:01:10]} 36. Rea1 {[%emt 0:00:48]} Rca8 {[%emt 0:00:08]} 37. Be2 {[%emt 0:01:09]} Kb8 {[%emt 0:02:05]} 38. Bf3 {[%emt 0:00:21]} Bd7 {[%emt 0:01:33]} 39. Bg2 {[%emt 0:01:00]} Be8 {[%emt 0:00:22]} 40. axb5 {[%emt 0:00:00]} axb5 {[%emt 0:00:33]} 41. Rxa7 {[%emt 0:00:54]} Rxa7 {[%emt 0:00:06]} 42. Rxa7 {[%emt 0:00:04]} Kxa7 {[%emt 0:00:06]} 43. Nxb5+ {[%emt 0:00:05]} cxb5 {[%emt 0:01:52]} 44. Bxd5 {[%emt 0:00:15]} Bd7 {[%emt 0:06:23]} 45. Kd4 {[%emt 0:00:36]} Be6 {[%emt 0:02:20]} 46. Bc6 {[%emt 0:03:07]} Bc4 {[%emt 0:05:34]} 47. Ke5 {[%emt 0:00:56]} Ne6 {[%emt 0:00:40]} 48. Kf6 {[%emt 0:05:30]} Nd8 {[%emt 0:04:04]} 49. Be8 {[%emt 0:00:31]} 1-0

[Event "ROU-ch Men 2018"]
[Site "Olanesti"]
[Date "2018.05.19"]
[Round "6"]
[White "Daianu, Cristian-Clement"]
[Black "Manea, Alexandru"]
[Result "1-0"]
[ECO "C04"]
[WhiteElo "2150"]
[BlackElo "2402"]
[Annotator "NA"]
[PlyCount "75"]
[EventDate "2018.??.??"]
[EventType "swiss"]
[EventCountry "ROU"]
[SourceTitle "playchess.com"]
[Source "ChessBase"]
[SourceQuality "1"]
[TimeControl "40/5400+30:1800+30"]

1. e4 {[%emt 0:02:35]} e6 {[%emt 0:00:24]} 2. d4 {[%emt 0:00:20]} d5 {[%emt 0:00:08]} 3. Nd2 {[%emt 0:00:05]} Nc6 {[%emt 0:01:59]} 4. Ngf3 {[%emt 0:01:06]} Nf6 {[%emt 0:00:19]} 5. e5 {[%emt 0:00:22]} Nd7 {[%emt 0:00:07]} 6. Bd3 {[%emt 0:00:25]} Nb4 {[%emt 0:02:06]} 7. Be2 {[%emt 0:00:56]} c5 {[%emt 0:00:09]} 8. c3 {[%emt 0:00:14]} Nc6 {[%emt 0:00:06]} 9. Bd3 {[%emt 0:00:25]} Be7 {[%emt 0:00:15]} 10. O-O {[%emt 0:00:34]} a5 {[%emt 0:00:07]} 11. Re1 {[%emt 0:15:43]} c4 {[%emt 0:03:54]} 12. Bc2 {[%emt 0:08:55]} b5 {[%emt 0:00:10]} 13. Nf1 {[%emt 0:01:15]} Nb6 {[%emt 0:02:45]} 14. Ng3 {[%emt 0:02:23]} h5 {[%emt 0:00:22]} 15. h3 {[%emt 0:06:03]} b4 {[%emt 0:05:20]} 16. Bd2 {[%emt 0:12:34]} a4 {[%emt 0:07:43]} 17. b3 {[%emt 0:09:56]} bxc3 {[%emt 0:07:38]} 18. Bxc3 {[%emt 0:00:15]} Nb4 {[%emt 0:00:04]} 19. Bb1 {[%emt 0:03:05]} h4 {[%emt 0:17:14]} 20. Ne2 {[%emt 0:05:09]} Ba6 {[%emt 0:00:09]} 21. Qd2 {[%emt 0:01:51]} Nc6 {[%emt 0:03:57]} 22. b4 {[%emt 0:04:05]} a3 {[%emt 0:00:07]} 23. Bc2 {[%emt 0:00:03]} Bb5 {[%emt 0:00:46]} 24. Rab1 {[%emt 0:00:21]} Kd7 {[%emt 0:22:27]} 25. Qf4 {[%emt 0:02:58]} Qf8 {[%emt 0:01:08]} 26. Bd2 {[%emt 0:06:51]} Ba4 {[%emt 0:00:33]} 27. Bxa4 {[%emt 0:01:16]} Rxa4 {[%emt 0:06:22]} 28. b5 {[%emt 0:03:26]} Nb4 {[%emt 0:00:19]} 29. Bxb4 {[%emt 0:00:56]} Bxb4 {[%emt 0:00:08]} 30. Rec1 {[%emt 0:00:39]} Qe7 {[%emt 0:05:30]} 31. Nc3 {[%emt 0:04:54]} Ra5 {[%emt 0:07:32]} 32. Qg4 {[%emt 0:03:36]} g6 {[%emt 0:00:31]} 33. Nd2 {[%emt 0:00:50]} Na4 {[%emt 0:01:26]} 34. Nxd5 {[%emt 0:00:20]} Bxd2 {[%emt 0:01:33]} 35. Nxe7 {[%emt 0:00:07]} Bxc1 {[%emt 0:00:15]} 36. Rxc1 {[%emt 0:00:09]} c3 {[%emt 0:00:36]} 37. Nd5 {[%emt 0:00:29]} Rc8 {[%emt 0:00:28]} 38. Ne3 {[%emt 0:01:46]} 1-0

[Event "ROU-ch Men 2018"]
[Site "Olanesti"]
[Date "2018.05.19"]
[Round "6"]
[White "Pribeanu, Mihail-Dacian"]
[Black "Toma, Mihail"]
[Result "1-0"]
[ECO "B01"]
[WhiteElo "2119"]
[BlackElo "1835"]
[Annotator "NA"]
[PlyCount "109"]
[EventDate "2018.??.??"]
[EventType "swiss"]
[EventCountry "ROU"]
[SourceTitle "playchess.com"]
[Source "ChessBase"]
[SourceQuality "1"]
[TimeControl "40/5400+30:1800+30"]

1. e4 {[%emt 0:00:00]} d5 {[%emt 0:00:30]} 2. exd5 {[%emt 0:00:30]} Qxd5 {[%emt 0:00:30]} 3. Nc3 {[%emt 0:00:30]} Qa5 {[%emt 0:00:30]} 4. d4 {[%emt 0:00:30]} Nf6 {[%emt 0:00:30]} 5. Nf3 {[%emt 0:00:30]} Bf5 {[%emt 0:00:30]} 6. Ne5 {[%emt 0:00:30]} c6 {[%emt 0:00:30]} 7. Nc4 {[%emt 0:00:30]} Qc7 {[%emt 0:00:30]} 8. g3 {[%emt 0:00:10]} Nd5 {[%emt 0:00:30]} 9. Bg2 {[%emt 0:02:12]} e6 {[%emt 0:00:00]} 10. O-O {[%emt 0:03:02]} Be7 {[%emt 0:00:00]} 11. Nxd5 {[%emt 0:00:03]} cxd5 {[%emt 0:00:00]} 12. Ne3 {[%emt 0:00:00]} Bg6 {[%emt 0:04:54]} 13. f4 O-O {[%emt 0:06:46]} 14. f5 {[%emt 0:02:13]} Bxf5 {[%emt 0:00:47]} 15. Nxf5 exf5 {[%emt 0:00:05]} 16. Rxf5 {[%emt 0:03:46]} Nc6 {[%emt 0:00:52]} 17. c3 g6 {[%emt 0:04:31]} 18. Rxd5 {[%emt 0:02:02]} Rad8 {[%emt 0:01:14]} 19. Bf4 {[%emt 0:01:29]} Qb6 {[%emt 0:00:55]} 20. Qb3 {[%emt 0:01:13]} Rxd5 {[%emt 0:04:51]} 21. Qxb6 {[%emt 0:00:46]} axb6 {[%emt 0:00:01]} 22. Bxd5 {[%emt 0:00:48]} b5 {[%emt 0:01:32]} 23. a3 {[%emt 0:00:01]} Kg7 {[%emt 0:00:14]} 24. Bg2 g5 {[%emt 0:01:34]} 25. Bc7 {[%emt 0:02:45]} Rc8 {[%emt 0:04:58]} 26. Bb6 {[%emt 0:01:14]} Bd8 {[%emt 0:02:13]} 27. Bxd8 {[%emt 0:01:07]} Rxd8 {[%emt 0:00:46]} 28. Rf1 {[%emt 0:00:29]} f6 {[%emt 0:08:32]} 29. Rf5 b4 {[%emt 0:00:57]} 30. axb4 {[%emt 0:01:13]} Ra8 {[%emt 0:00:02]} 31. Bxc6 bxc6 32. Rc5 {[%emt 0:01:16]} Ra2 {[%emt 0:01:29]} 33. b5 {[%emt 0:00:14]} cxb5 {[%emt 0:00:56]} 34. Rxb5 {[%emt 0:01:23]} Kg6 {[%emt 0:00:10]} 35. g4 h5 36. h3 Ra1+ 37. Kg2 {[%emt 0:01:44]} Rd1 {[%emt 0:03:18]} 38. Rf5 hxg4 {[%emt 0:01:29]} 39. hxg4 {[%emt 0:00:38]} Rd3 {[%emt 0:00:49]} 40. Rf2 {[%emt 0:00:00]} Kf7 {[%emt 0:00:27]} 41. Re2 {[%emt 0:02:07]} Kg6 {[%emt 0:00:20]} 42. Kf2 {[%emt 0:02:21]} Kf7 {[%emt 0:00:24]} 43. Ke1 {[%emt 0:01:21]} Kg6 {[%emt 0:01:48]} 44. Re4 Kf7 45. Ke2 Rh3 46. Kd2 {[%emt 0:01:25]} Rh2+ {[%emt 0:07:58]} 47. Re2 Rh4 48. Rg2 Kg6 {[%emt 0:01:48]} 49. d5 {[%emt 0:03:55]} f5 {[%emt 0:00:11]} 50. d6 fxg4 {[%emt 0:00:43]} 51. d7 {[%emt 0:01:45]} Rh8 {[%emt 0:00:11]} 52. Rxg4 {[%emt 0:00:15]} Kf5 {[%emt 0:00:12]} 53. Rd4 {[%emt 0:00:02]} Rd8 {[%emt 0:00:03]} 54. Ke2 {[%emt 0:00:25]} Ke6 {[%emt 0:01:02]} 55. Kf3 {Kd5 Ke4+} 1-0

[Event "ROU-ch Men 2018"]
[Site "Olanesti"]
[Date "2018.05.19"]
[Round "6"]
[White "Chima, Radu-Niculin"]
[Black "Cenusa, Mihai"]
[Result "1-0"]
[ECO "B32"]
[WhiteElo "2095"]
[BlackElo "1819"]
[Annotator "NA"]
[PlyCount "81"]
[EventDate "2018.??.??"]
[EventType "swiss"]
[EventCountry "ROU"]
[SourceTitle "playchess.com"]
[Source "ChessBase"]
[SourceQuality "1"]
[TimeControl "40/5400+30:1800+30"]

1. e4 {[%emt 0:00:00]} c5 {[%emt 0:00:39]} 2. Nf3 {[%emt 0:00:00]} Nc6 {[%emt 0:00:21]} 3. d4 {[%emt 0:00:00]} cxd4 {[%emt 0:00:29]} 4. Nxd4 {[%emt 0:00:00]} e5 {[%emt 0:00:58]} 5. Nb5 {[%emt 0:00:12]} d6 {[%emt 0:01:53]} 6. c4 {[%emt 0:01:42]} f5 {[%emt 0:03:24]} 7. N1c3 {[%emt 0:01:01]} a6 {[%emt 0:00:25]} 8. Na3 {[%emt 0:00:14]} fxe4 {[%emt 0:10:10]} 9. Nxe4 {[%emt 0:02:11]} Nd4 {[%emt 0:04:28]} 10. Bd3 {[%emt 0:03:07]} Nf6 {[%emt 0:09:16]} 11. O-O {[%emt 0:03:02]} Be7 {[%emt 0:01:24]} 12. Nc2 {[%emt 0:01:43]} Nxc2 {[%emt 0:04:14]} 13. Qxc2 {[%emt 0:01:40]} g6 {[%emt 0:00:31]} 14. Bh6 {[%emt 0:10:20]} Ng4 {[%emt 0:02:49]} 15. Bd2 {[%emt 0:02:50]} Be6 {[%emt 0:08:33]} 16. h3 {[%emt 0:01:01]} Nf6 {[%emt 0:00:06]} 17. Ng5 {[%emt 0:01:18]} Qd7 {[%emt 0:00:59]} 18. f4 {[%emt 0:08:07]} e4 {[%emt 0:11:37]} 19. Bxe4 {[%emt 0:03:07]} Nxe4 {[%emt 0:01:11]} 20. Qxe4 {[%emt 0:00:58]} Bxg5 {[%emt 0:04:43]} 21. fxg5 {[%emt 0:01:15]} O-O-O {[%emt 0:00:22]} 22. Rae1 {[%emt 0:02:13]} Bf5 {[%emt 0:02:42]} 23. Qd4 {[%emt 0:00:27]} Qc7 {[%emt 0:07:36]} 24. b4 {[%emt 0:01:17]} Rhe8 {[%emt 0:05:03]} 25. Bf4 {[%emt 0:04:16]} Qc6 {[%emt 0:02:21]} 26. Kh2 {[%emt 0:04:56]} Re4 {[%emt 0:01:08]} 27. Rxe4 {[%emt 0:01:05]} Qxe4 {[%emt 0:00:12]} 28. Qb6 {[%emt 0:02:57]} Qc6 {[%emt 0:01:36]} 29. Qd4 {[%emt 0:01:39]} Qe4 {[%emt 0:02:47]} 30. Qa7 {[%emt 0:02:27]} Qc6 {[%emt 0:02:32]} 31. c5 {[%emt 0:03:57]} d5 {[%emt 0:00:54]} 32. Re1 {[%emt 0:04:46]} Be4 {[%emt 0:00:19]} 33. Qb8+ {[%emt 0:00:59]} Kd7 {[%emt 0:00:09]} 34. Qe5 {[%emt 0:00:23]} Re8 {[%emt 0:00:30]} 35. Qg7+ {[%emt 0:00:33]} Re7 {[%emt 0:00:18]} 36. Qd4 {[%emt 0:00:32]} Re6 {[%emt 0:00:49]} 37. a4 {[%emt 0:01:39]} Qxa4 {[%emt 0:03:00]} 38. Rxe4 {[%emt 0:00:34]} Qc6 {[%emt 0:01:49]} 39. Qg7+ {[%emt 0:00:20]} Kd8 {[%emt 0:00:25]} 40. Qg8+ {[%emt 0:00:00]} Qe8 {[%emt 0:00:21]} 41. Qxe6 1-0

[Event "ROU-ch Men 2018"]
[Site "Olanesti"]
[Date "2018.05.19"]
[Round "6"]
[White "Raducanu, Andrei-Augustin"]
[Black "Bobocea, Laurentiu-Vlad"]
[Result "1-0"]
[ECO "B26"]
[WhiteElo "2063"]
[BlackElo "1853"]
[Annotator "NA"]
[PlyCount "65"]
[EventDate "2018.??.??"]
[EventType "swiss"]
[EventCountry "ROU"]
[SourceTitle "playchess.com"]
[Source "ChessBase"]
[SourceQuality "1"]
[TimeControl "40/5400+30:1800+30"]

1. e4 {[%emt 0:00:00]} c5 {[%emt 0:03:19]} 2. Nc3 {[%emt 0:00:00]} d6 {[%emt 0:00:08]} 3. g3 {[%emt 0:00:19]} Nc6 {[%emt 0:00:16]} 4. Bg2 {[%emt 0:00:04]} g6 {[%emt 0:00:04]} 5. d3 {[%emt 0:00:17]} Bg7 {[%emt 0:00:05]} 6. Be3 {[%emt 0:00:34]} Nf6 {[%emt 0:00:12]} 7. h3 {[%emt 0:01:09]} O-O {[%emt 0:01:12]} 8. Nge2 {[%emt 0:00:48]} Nd7 {[%emt 0:00:47]} 9. Qd2 {[%emt 0:10:38]} Nd4 {[%emt 0:00:27]} 10. Nd1 {[%emt 0:01:02]} Rb8 {[%emt 0:06:52]} 11. c3 {[%emt 0:06:24]} Nxe2 {[%emt 0:01:21]} 12. Qxe2 {[%emt 0:00:03]} b5 {[%emt 0:00:47]} 13. Qd2 {[%emt 0:14:10]} Re8 {[%emt 0:04:36]} 14. f4 {[%emt 0:11:23]} b4 {[%emt 0:01:12]} 15. c4 {[%emt 0:00:52]} Bb7 {[%emt 0:08:03]} 16. g4 {[%emt 0:04:05]} e6 {[%emt 0:02:49]} 17. g5 {[%emt 0:09:10]} f6 {[%emt 0:09:13]} 18. h4 {[%emt 0:04:31]} d5 {[%emt 0:04:25]} 19. gxf6 {[%emt 0:06:20]} Bxf6 {[%emt 0:04:03]} 20. h5 {[%emt 0:00:24]} Bh4+ {[%emt 0:00:56]} 21. Bf2 {[%emt 0:01:44]} Bxf2+ {[%emt 0:00:42]} 22. Qxf2 {[%emt 0:02:45]} dxe4 {[%emt 0:01:44]} 23. Bxe4 {[%emt 0:04:26]} Bxe4 {[%emt 0:00:17]} 24. dxe4 {[%emt 0:00:02]} Qf6 {[%emt 0:02:18]} 25. hxg6 {[%emt 0:02:39]} hxg6 {[%emt 0:00:06]} 26. e5 {[%emt 0:02:14]} Qg7 {[%emt 0:09:11]} 27. Ne3 {[%emt 0:00:24]} Rf8 {[%emt 0:00:58]} 28. Ng4 {[%emt 0:01:07]} Rfd8 {[%emt 0:00:47]} 29. O-O-O {[%emt 0:05:42]} Kf8 {[%emt 0:02:46]} 30. Rh3 {[%emt 0:02:33]} Rbc8 {[%emt 0:01:53]} 31. Rdh1 {[%emt 0:06:48]} Kg8 {[%emt 0:00:39]} 32. Qh2 {[%emt 0:00:57]} Nf8 {[%emt 0:02:15]} 33. Nh6+ {[%emt 0:00:02]} 1-0

[Event "ROU-ch Men 2018"]
[Site "Olanesti"]
[Date "2018.05.19"]
[Round "6"]
[White "Albu, George"]
[Black "Ciobanu, Viorel-Adrian"]
[Result "0-1"]
[ECO "E71"]
[WhiteElo "2038"]
[BlackElo "2196"]
[Annotator "NA"]
[PlyCount "82"]
[EventDate "2018.??.??"]
[EventType "swiss"]
[EventCountry "ROU"]
[SourceTitle "playchess.com"]
[Source "ChessBase"]
[SourceQuality "1"]
[TimeControl "40/5400+30:1800+30"]

1. d4 {[%emt 0:00:00]} Nf6 {[%emt 0:00:08]} 2. c4 {[%emt 0:00:00]} g6 {[%emt 0:00:13]} 3. Nc3 {[%emt 0:00:00]} Bg7 {[%emt 0:00:05]} 4. e4 {[%emt 0:00:00]} d6 {[%emt 0:00:06]} 5. h3 $14 {[%emt 0:00:00] LiveBook: 3139 Games} O-O {[%emt 0:00:08]} 6. Bg5 {[%emt 0:00:00]} Nbd7 {[%emt 0:23:07]} 7. Bd3 {[%emt 0:00:22]} c5 {[%emt 0:00:50]} 8. d5 {[%emt 0:01:01]} e6 9. Nf3 exd5 10. exd5 Re8+ {[%emt 0:14:37]} 11. Be3 {[%emt 0:03:51]} Nh5 {[%emt 0:08:54]} 12. O-O {[%emt 0:02:02]} Ne5 {[%emt 0:01:10]} 13. Nxe5 {[%emt 0:37:04]} Bxe5 {[%emt 0:01:18]} 14. Re1 {[%emt 0:00:12]} Bd7 {[%emt 0:12:28]} 15. Qd2 {[%emt 0:17:41]} f5 {[%emt 0:24:28]} 16. f4 {[%emt 0:10:03]} Bg7 {[%emt 0:05:11]} 17. Bf2 {[%emt 0:00:39]} Qa5 {[%emt 0:05:11]} 18. g3 {[%emt 0:24:07]} a6 {[%emt 0:00:45]} 19. a4 {[%emt 0:01:43]} Qb4 {[%emt 0:00:35]} 20. Qc2 {[%emt 0:00:38]} Kf8 {[%emt 0:00:23]} 21. Rxe8+ {[%emt 0:00:34]} Rxe8 {[%emt 0:00:07]} 22. a5 {[%emt 0:00:30]} Bd4 {[%emt 0:01:01]} 23. Kg2 {[%emt 0:00:29]} Nf6 24. Ra3 {[%emt 0:00:32]} b6 {[%emt 0:01:05]} 25. axb6 {[%emt 0:00:29]} Bxf2 {[%emt 0:00:23]} 26. Kxf2 {[%emt 0:00:18]} Qxb6 {[%emt 0:00:16]} 27. Rb3 {[%emt 0:00:29]} Qd8 {[%emt 0:00:20]} 28. Rb7 {[%emt 0:00:45]} Bc8 {[%emt 0:00:35]} 29. Rb3 {[%emt 0:00:14]} Nh5 {[%emt 0:00:51]} 30. Qd2 {[%emt 0:00:38]} Qa5 {[%emt 0:00:31]} 31. Nb1 {[%emt 0:00:37]} Qd8 {[%emt 0:00:35]} 32. Nc3 {[%emt 0:00:04]} Nf6 {[%emt 0:00:19]} 33. Na4 {[%emt 0:00:28]} h5 {[%emt 0:00:31]} 34. Nb6 {[%emt 0:00:45]} h4 {[%emt 0:00:18]} 35. g4 {[%emt 0:00:40]} fxg4 {[%emt 0:00:44]} 36. f5 {[%emt 0:00:09]} Bxf5 {[%emt 0:00:45]} 37. Qh6+ {[%emt 0:00:45]} Kf7 {[%emt 0:00:14]} 38. Bxf5 {[%emt 0:00:40]} gxf5 {[%emt 0:00:15]} 39. Kf1 {[%emt 0:00:30]} Qe7 {[%emt 0:00:22]} 40. Qxh4 {[%emt 0:00:00]} Qe2+ {[%emt 0:00:18]} 41. Kg1 {[%emt 0:00:35]} Qd1+ {[%emt 0:00:19]} 0-1

[Event "ROU-ch Men 2018"]
[Site "Olanesti"]
[Date "2018.05.19"]
[Round "6"]
[White "Farcadi, Hunor"]
[Black "Paraschiv, Paul-Alexandru"]
[Result "1/2-1/2"]
[ECO "B01"]
[WhiteElo "1959"]
[BlackElo "2131"]
[Annotator "NA"]
[PlyCount "103"]
[EventDate "2018.??.??"]
[EventType "swiss"]
[EventCountry "ROU"]
[SourceTitle "playchess.com"]
[Source "ChessBase"]
[SourceQuality "1"]
[TimeControl "40/5400+30:1800+30"]

1. e4 {[%emt 0:00:05]} d5 {[%emt 0:04:40]} 2. exd5 {[%emt 0:00:07]} Qxd5 {[%emt 0:00:01]} 3. Nc3 {[%emt 0:00:10]} Qa5 {[%emt 0:00:06]} 4. d4 {[%emt 0:00:07]} Nf6 {[%emt 0:00:22]} 5. Nf3 {[%emt 0:01:09]} Bg4 {[%emt 0:00:33]} 6. Bc4 {[%emt 0:02:06]} e6 {[%emt 0:00:25]} 7. Bd2 {[%emt 0:02:42]} c6 {[%emt 0:00:58]} 8. h3 {[%emt 0:01:11]} Bh5 {[%emt 0:02:50]} 9. g4 {[%emt 0:02:19]} Bg6 {[%emt 0:00:21]} 10. Ne5 {[%emt 0:00:57]} Nbd7 {[%emt 0:02:28]} 11. Qe2 {[%emt 0:02:49]} Nxe5 {[%emt 0:07:22]} 12. dxe5 {[%emt 0:03:53]} Nd7 {[%emt 0:00:16]} 13. f4 {[%emt 0:08:53]} Bxc2 {[%emt 0:04:09]} 14. Nb5 {[%emt 0:05:41]} Qd8 {[%emt 0:04:04]} 15. Nd4 {[%emt 0:00:17]} Bg6 {[%emt 0:04:22]} 16. f5 {[%emt 0:24:20]} exf5 {[%emt 0:00:43]} 17. e6 {[%emt 0:03:35]} Qh4+ {[%emt 0:04:29]} 18. Kf1 {[%emt 0:02:03]} O-O-O {[%emt 0:05:23]} 19. Nxc6 {[%emt 0:17:50]} fxe6 {[%emt 0:07:35]} 20. Nxd8 {[%emt 0:01:41]} Kxd8 {[%emt 0:00:32]} 21. Bxe6 {[%emt 0:01:10]} fxg4 {[%emt 0:02:27]} 22. Bxd7 {[%emt 0:03:08]} Qf6+ {[%emt 0:02:02]} 23. Kg2 {[%emt 0:03:38]} Kxd7 {[%emt 0:05:42]} 24. Qxg4+ {[%emt 0:02:11]} Bf5 {[%emt 0:00:22]} 25. Qa4+ {[%emt 0:00:05]} Kd8 {[%emt 0:01:15]} 26. Rad1 {[%emt 0:07:00]} Bd6 {[%emt 0:02:28]} 27. Bf4 {[%emt 0:00:17]} Bd7 {[%emt 0:00:37]} 28. Rxd6 {[%emt 0:03:58]} Qxd6 {[%emt 0:00:20]} 29. Qa5+ {[%emt 0:00:21]} Qb6 {[%emt 0:01:00]} 30. Bg5+ {[%emt 0:00:43]} Kc8 {[%emt 0:00:22]} 31. Qxb6 {[%emt 0:00:21]} axb6 {[%emt 0:00:01]} 32. Rc1+ {[%emt 0:00:18]} Bc6+ {[%emt 0:00:01]} 33. Kg3 {[%emt 0:00:27]} Re8 {[%emt 0:00:22]} 34. Bd2 {[%emt 0:00:34]} Re2 {[%emt 0:00:17]} 35. Bc3 {[%emt 0:00:05]} b5 {[%emt 0:02:48]} 36. a3 {[%emt 0:00:34]} g5 {[%emt 0:02:25]} 37. Kg4 {[%emt 0:00:30]} Rg2+ {[%emt 0:00:18]} 38. Kh5 {[%emt 0:00:09]} Rg3 {[%emt 0:00:52]} 39. Rf1 {[%emt 0:00:47]} Rxh3+ {[%emt 0:03:52]} 40. Kxg5 {[%emt 0:00:00]} h6+ {[%emt 0:00:37]} 41. Kg4 {[%emt 0:04:53]} Bd7+ {[%emt 0:00:38]} 42. Kf4 {[%emt 0:00:04]} h5 {[%emt 0:00:28]} 43. Rf2 {[%emt 0:00:25]} Rh1 {[%emt 0:00:27]} 44. Be5 {[%emt 0:00:35]} h4 {[%emt 0:01:21]} 45. Ke3 {[%emt 0:01:19]} Be6 {[%emt 0:01:33]} 46. Rh2 {[%emt 0:03:17]} Re1+ {[%emt 0:00:32]} 47. Re2 {[%emt 0:00:11]} Rf1 {[%emt 0:00:29]} 48. Rf2 {[%emt 0:00:24]} Re1+ {[%emt 0:00:12]} 49. Re2 {[%emt 0:00:06]} Rg1 {[%emt 0:00:04]} 50. Rc2+ {[%emt 0:03:23]} Kd8 {[%emt 0:00:32]} 51. Bf6+ {[%emt 0:00:17]} Kd7 {[%emt 0:01:03]} 52. Ke4 1/2-1/2